[Event "*** Titled Tuesday 3|2 Blitz"]
[Site "Chess.com"]
[Date "2016.05.03"]
[Round "7"]
[White "AlexanderL"]
[Black "chessking2151"]
[Result "1-0"]
[WhiteElo "2575"]
[BlackElo "2325"]
[TimeControl "180+2"]
[EndTime "18:25:34 PDT"]
[Termination "AlexanderL won by resignation"]

1. d4 {[%clk 0:03:01.9]} 1... Nf6 {[%clk 0:03:01.2]} 2. Bg5 {[%clk 0:03:02.5]}
2... d5 {[%clk 0:02:59.7]} 3. e3 {[%clk 0:03:02.9]} 3... h6 {[%clk 0:02:59.5]}
4. Bxf6 {[%clk 0:03:03.2]} 4... exf6 {[%clk 0:03:01.4]} 5. g3 {[%clk 0:03:03.5]}
5... Bd6 {[%clk 0:03:01.6]} 6. Bg2 {[%clk 0:03:04.6]} 6... O-O {[%clk
0:02:58.6]} 7. Ne2 {[%clk 0:03:02]} 7... c6 {[%clk 0:02:57.1]} 8. O-O {[%clk
0:03:02.8]} 8... Nd7 {[%clk 0:02:57.7]} 9. c4 {[%clk 0:03:01.6]} 9... dxc4
{[%clk 0:02:58.7]} 10. Qc2 {[%clk 0:03:02.8]} 10... b5 {[%clk 0:02:52.5]} 11.
Bxc6 {[%clk 0:03:02.9]} 11... Rb8 {[%clk 0:02:53.1]} 12. b3 {[%clk 0:03:00.9]}
12... cxb3 {[%clk 0:02:49.6]} 13. axb3 {[%clk 0:03:01.8]} 13... a6 {[%clk
0:02:45.7]} 14. Nbc3 {[%clk 0:03:02.6]} 14... Nb6 {[%clk 0:02:46.6]} 15. Rfc1
{[%clk 0:03:00.7]} 15... Qe7 {[%clk 0:02:33.9]} 16. Qd3 {[%clk 0:02:53]} 16...
Ba3 {[%clk 0:02:29.5]} 17. Rc2 {[%clk 0:02:51.7]} 17... Rd8 {[%clk 0:02:17.5]}
18. Nf4 {[%clk 0:02:50.2]} 18... Bd6 {[%clk 0:02:03.5]} 19. Ncd5 {[%clk
0:02:50.9]} 19... Nxd5 {[%clk 0:02:02.7]} 20. Nxd5 {[%clk 0:02:52.8]} 20... Qf8
{[%clk 0:01:22.8]} 21. e4 {[%clk 0:02:48]} 21... h5 {[%clk 0:01:06.2]} 22. h4
{[%clk 0:02:46.1]} 22... Be7 {[%clk 0:00:49]} 23. Kg2 {[%clk 0:02:36.4]} 23...
g6 {[%clk 0:00:36]} 24. Qe3 {[%clk 0:02:13.9]} 24... Kg7 {[%clk 0:00:24.2]} 25.
e5 {[%clk 0:02:14.7]} 25... f5 {[%clk 0:00:20.1]} 26. Nxe7 {[%clk 0:02:12.2]}
26... Qxe7 {[%clk 0:00:22]} 27. d5 {[%clk 0:02:13.4]} 27... Bb7 {[%clk 0:00:22]}
28. d6 {[%clk 0:01:57.2]} 28... Bxc6+ {[%clk 0:00:22]} 29. Rxc6 {[%clk
0:01:58.1]} 29... Qb7 {[%clk 0:00:23.7]} 30. Qf3 {[%clk 0:01:58.9]} 30... Ra8
{[%clk 0:00:23.5]} 31. Qd5 {[%clk 0:01:53.6]} 31... Kg8 {[%clk 0:00:21.3]} 32.
b4 {[%clk 0:01:42.1]} 32... a5 {[%clk 0:00:18.7]} 33. Rxa5 {[%clk 0:01:38.9]}
33... Rac8 {[%clk 0:00:18.3]} 34. Raa6 {[%clk 0:01:38.2]} 34... Kg7 {[%clk
0:00:17.7]} 35. Rab6 {[%clk 0:01:37.3]} 35... Qa8 {[%clk 0:00:18.5]} 36. d7
{[%clk 0:01:26.3]} 36... Rxc6 {[%clk 0:00:17.2]} 37. Rxc6 {[%clk 0:01:27.5]}
37... Qb7 {[%clk 0:00:18.4]} 38. Rxg6+ {[%clk 0:01:28.3]} 1-0

[Event "*** Titled Tuesday 3|2 Blitz"]
[Site "Chess.com"]
[Date "2016.05.03"]
[Round "7"]
[White "chito89"]
[Black "sandropozo"]
[Result "0-1"]
[WhiteElo "2555"]
[BlackElo "2299"]
[TimeControl "180+2"]
[EndTime "18:26:05 PDT"]
[Termination "sandropozo won by checkmate"]

1. e4 {[%clk 0:02:57.2]} 1... e6 {[%clk 0:03:00.3]} 2. Nf3 {[%clk 0:02:55.4]}
2... d5 {[%clk 0:03:01.2]} 3. Nc3 {[%clk 0:02:56.8]} 3... dxe4 {[%clk
0:02:59.3]} 4. Nxe4 {[%clk 0:02:57.4]} 4... Bd7 {[%clk 0:03:00.9]} 5. d4 {[%clk
0:02:53.5]} 5... Bc6 {[%clk 0:03:01.8]} 6. Ned2 {[%clk 0:02:53.9]} 6... Nd7
{[%clk 0:03:01.4]} 7. Bd3 {[%clk 0:02:54.8]} 7... Ngf6 {[%clk 0:03:01.5]} 8. Qe2
{[%clk 0:02:56.2]} 8... Be7 {[%clk 0:02:58]} 9. O-O {[%clk 0:02:57]} 9... O-O
{[%clk 0:02:55.3]} 10. c3 {[%clk 0:02:58.1]} 10... Bd5 {[%clk 0:02:51]} 11. a4
{[%clk 0:02:57]} 11... c5 {[%clk 0:02:50.2]} 12. a5 {[%clk 0:02:54.6]} 12...
cxd4 {[%clk 0:02:49.2]} 13. Nxd4 {[%clk 0:02:54.2]} 13... a6 {[%clk 0:02:35.7]}
14. N2f3 {[%clk 0:02:52.4]} 14... Nc5 {[%clk 0:02:33.8]} 15. Bc2 {[%clk
0:02:52.7]} 15... Qc7 {[%clk 0:02:28.7]} 16. Bg5 {[%clk 0:02:49.7]} 16... h6
{[%clk 0:02:24.9]} 17. Bh4 {[%clk 0:02:41]} 17... Ncd7 {[%clk 0:02:21.3]} 18.
Rfd1 {[%clk 0:02:39.8]} 18... Bd6 {[%clk 0:02:18.4]} 19. Bg3 {[%clk 0:02:38.3]}
19... Bxg3 {[%clk 0:02:17.6]} 20. hxg3 {[%clk 0:02:37.8]} 20... Rfe8 {[%clk
0:02:09]} 21. Ra4 {[%clk 0:02:36.8]} 21... Nc5 {[%clk 0:02:05.4]} 22. Ra3 {[%clk
0:02:34.7]} 22... e5 {[%clk 0:02:04.1]} 23. Nf5 {[%clk 0:02:34.2]} 23... e4
{[%clk 0:02:00.3]} 24. N3d4 {[%clk 0:02:32.8]} 24... Rad8 {[%clk 0:01:52.5]} 25.
c4 {[%clk 0:02:06.4]} 25... Bc6 {[%clk 0:01:38.9]} 26. b4 {[%clk 0:02:02.2]}
26... Nd3 {[%clk 0:01:31.7]} 27. b5 {[%clk 0:01:53]} 27... axb5 {[%clk
0:01:28.4]} 28. cxb5 {[%clk 0:01:54.9]} 28... Bd5 {[%clk 0:01:29.4]} 29. b6
{[%clk 0:01:44.6]} 29... Qc5 {[%clk 0:01:20.6]} 30. Rda1 {[%clk 0:01:42.4]}
30... Bc4 {[%clk 0:01:18.8]} 31. Qe3 {[%clk 0:01:42.2]} 31... Ba6 {[%clk
0:01:12.7]} 32. Bb3 {[%clk 0:01:35.1]} 32... Ng4 {[%clk 0:01:10.4]} 33. Qe2
{[%clk 0:01:30.4]} 33... Ndxf2 {[%clk 0:01:04.3]} 34. Qa2 {[%clk 0:01:32]} 34...
Rxd4 {[%clk 0:00:47.6]} 35. Bxf7+ {[%clk 0:01:27.9]} 35... Kh8 {[%clk
0:00:39.8]} 36. Nxd4 {[%clk 0:01:24]} 36... Qxd4 {[%clk 0:00:38.2]} 37. Qd5
{[%clk 0:01:24.5]} 37... Nh3+ {[%clk 0:00:28]} 38. Kh1 {[%clk 0:01:23.5]} 38...
Qg1+ {[%clk 0:00:26.8]} 39. Rxg1 {[%clk 0:01:18.7]} 39... Nhf2# {[%clk 0:00:28]}
0-1

[Event "*** Titled Tuesday 3|2 Blitz"]
[Site "Chess.com"]
[Date "2016.05.03"]
[Round "7"]
[White "jk13"]
[Black "TheCount"]
[Result "0-1"]
[WhiteElo "2433"]
[BlackElo "2540"]
[TimeControl "180+2"]
[EndTime "18:26:08 PDT"]
[Termination "TheCount won by resignation"]

1. e4 {[%clk 0:03:01.9]} 1... e5 {[%clk 0:03:00.7]} 2. Nf3 {[%clk 0:03:02.5]}
2... Nc6 {[%clk 0:03:02.4]} 3. Bc4 {[%clk 0:03:04]} 3... a6 {[%clk 0:03:04.1]}
4. d3 {[%clk 0:02:54.8]} 4... Be7 {[%clk 0:03:02.1]} 5. Ng5 {[%clk 0:02:48.8]}
5... Bxg5 {[%clk 0:02:59.5]} 6. Qh5 {[%clk 0:02:49.8]} 6... g6 {[%clk
0:02:15.3]} 7. Qxg5 {[%clk 0:02:50.7]} 7... Qxg5 {[%clk 0:02:17]} 8. Bxg5 {[%clk
0:02:52]} 8... d6 {[%clk 0:02:18.1]} 9. Nc3 {[%clk 0:02:48.4]} 9... Be6 {[%clk
0:02:13.7]} 10. Nd5 {[%clk 0:02:46.1]} 10... Kd7 {[%clk 0:02:10.8]} 11. a3
{[%clk 0:02:45.8]} 11... Nd4 {[%clk 0:02:07.4]} 12. O-O-O {[%clk 0:02:40.5]}
12... h6 {[%clk 0:02:06.5]} 13. Be3 {[%clk 0:02:36.2]} 13... b5 {[%clk
0:01:23.3]} 14. Ba2 {[%clk 0:02:33.3]} 14... Rb8 {[%clk 0:01:24.6]} 15. c3
{[%clk 0:02:11]} 15... Ne2+ {[%clk 0:01:15.3]} 16. Kd2 {[%clk 0:02:11.5]} 16...
Nf4 {[%clk 0:01:17.2]} 17. g3 {[%clk 0:02:03]} 17... Nxd5 {[%clk 0:01:15.3]} 18.
exd5 {[%clk 0:02:04.9]} 18... Bg4 {[%clk 0:01:16]} 19. f3 {[%clk 0:02:01.8]}
19... Bxf3 {[%clk 0:01:11.5]} 20. Rhf1 {[%clk 0:02:02.6]} 20... Bxd1 {[%clk
0:01:12.6]} 21. Rxf7+ {[%clk 0:02:04.2]} 21... Ke8 {[%clk 0:01:09.5]} 22. Rxc7
{[%clk 0:01:59.4]} 22... Bg4 {[%clk 0:01:09.8]} 23. b4 {[%clk 0:01:55.5]} 23...
Ne7 {[%clk 0:01:07.3]} 24. c4 {[%clk 0:01:57.1]} 24... Bf3 {[%clk 0:00:51.4]}
25. Ra7 {[%clk 0:01:34.7]} 25... e4 {[%clk 0:00:50.3]} 26. c5 {[%clk 0:01:09.2]}
26... exd3 {[%clk 0:00:36]} 27. cxd6 {[%clk 0:01:10.2]} 27... Nxd5 {[%clk
0:00:36.9]} 28. Bd4 {[%clk 0:00:34.8]} 28... Rf8 {[%clk 0:00:33.9]} 29. d7+
{[%clk 0:00:30]} 29... Ke7 {[%clk 0:00:30.5]} 30. Be5 {[%clk 0:00:31.1]} 30...
Rbd8 {[%clk 0:00:30.7]} 31. Rxa6 {[%clk 0:00:23.3]} 31... Rxd7 {[%clk
0:00:31.6]} 32. Rxg6 {[%clk 0:00:24]} 32... Be4 {[%clk 0:00:27.7]} 33. Rxh6
{[%clk 0:00:21.5]} 33... Rf2+ {[%clk 0:00:28]} 34. Ke1 {[%clk 0:00:22.5]} 34...
Re2+ {[%clk 0:00:27.8]} 0-1

[Event "*** Titled Tuesday 3|2 Blitz"]
[Site "Chess.com"]
[Date "2016.05.03"]
[Round "7"]
[White "NaziPaiki"]
[Black "GM_Huschenbeth"]
[Result "1-0"]
[WhiteElo "2680"]
[BlackElo "2489"]
[TimeControl "180+2"]
[EndTime "18:26:21 PDT"]
[Termination "NaziPaiki won by resignation"]

1. e4 {[%clk 0:02:59]} 1... e6 {[%clk 0:03:00.9]} 2. Qe2 {[%clk 0:02:57.7]} 2...
d5 {[%clk 0:03:02.8]} 3. exd5 {[%clk 0:02:54.5]} 3... Qxd5 {[%clk 0:03:04.7]} 4.
Nc3 {[%clk 0:02:53.2]} 4... Qd8 {[%clk 0:03:05.3]} 5. g3 {[%clk 0:02:49.5]} 5...
Nf6 {[%clk 0:03:04.8]} 6. Bg2 {[%clk 0:02:50.3]} 6... Be7 {[%clk 0:03:01.8]} 7.
Nf3 {[%clk 0:02:50]} 7... O-O {[%clk 0:03:02.8]} 8. d4 {[%clk 0:02:48.5]} 8...
c6 {[%clk 0:03:03]} 9. O-O {[%clk 0:02:47.1]} 9... Nbd7 {[%clk 0:03:01.3]} 10.
Rd1 {[%clk 0:02:46.6]} 10... Nb6 {[%clk 0:02:55.6]} 11. Ne5 {[%clk 0:02:42]}
11... Nbd5 {[%clk 0:02:40.9]} 12. Ne4 {[%clk 0:02:39.5]} 12... Nxe4 {[%clk
0:02:40.1]} 13. Bxe4 {[%clk 0:02:39.9]} 13... Nf6 {[%clk 0:02:38.2]} 14. Bd3
{[%clk 0:02:38]} 14... Qb6 {[%clk 0:02:33.9]} 15. c3 {[%clk 0:02:38.2]} 15... c5
{[%clk 0:02:33.1]} 16. Bg5 {[%clk 0:02:32.1]} 16... cxd4 {[%clk 0:02:28.4]} 17.
cxd4 {[%clk 0:02:33.4]} 17... Qd6 {[%clk 0:02:11.2]} 18. Rac1 {[%clk 0:02:28.9]}
18... Nd5 {[%clk 0:01:57.1]} 19. Bxe7 {[%clk 0:02:29]} 19... Qxe7 {[%clk
0:01:59]} 20. Qe4 {[%clk 0:02:24.7]} 20... g6 {[%clk 0:01:49.6]} 21. Bc4 {[%clk
0:02:25]} 21... Nf6 {[%clk 0:01:41.9]} 22. Qe3 {[%clk 0:02:20.2]} 22... Bd7
{[%clk 0:01:36.3]} 23. Bf1 {[%clk 0:02:16.9]} 23... Rac8 {[%clk 0:01:34.2]} 24.
Bg2 {[%clk 0:02:16.7]} 24... b6 {[%clk 0:01:25.1]} 25. Rc3 {[%clk 0:02:11.1]}
25... Rxc3 {[%clk 0:01:20.4]} 26. bxc3 {[%clk 0:02:11.6]} 26... Rc8 {[%clk
0:01:22.3]} 27. c4 {[%clk 0:02:09.1]} 27... Ba4 {[%clk 0:01:18.1]} 28. Rc1
{[%clk 0:02:09.8]} 28... Nd7 {[%clk 0:01:18.7]} 29. Nd3 {[%clk 0:02:03.5]} 29...
Bc6 {[%clk 0:01:17]} 30. d5 {[%clk 0:02:01.3]} 30... Ba8 {[%clk 0:01:17.8]} 31.
Re1 {[%clk 0:01:56.9]} 31... Nf8 {[%clk 0:00:40.8]} 32. Ne5 {[%clk 0:01:52.6]}
32... exd5 {[%clk 0:00:36.9]} 33. cxd5 {[%clk 0:01:53.8]} 33... Re8 {[%clk
0:00:28.9]} 34. Qd4 {[%clk 0:01:41]} 34... Qd6 {[%clk 0:00:20.6]} 35. Re3 {[%clk
0:01:41.2]} 35... Rc8 {[%clk 0:00:07.9]} 36. h4 {[%clk 0:01:32.8]} 36... Nd7
{[%clk 0:00:09.3]} 37. Ng4 {[%clk 0:01:29.2]} 37... h5 {[%clk 0:00:07.6]} 38.
Nh6+ {[%clk 0:01:25.8]} 38... Kh7 {[%clk 0:00:09.2]} 39. Nxf7 {[%clk 0:01:26.7]}
39... Qf6 {[%clk 0:00:10.2]} 40. Ng5+ {[%clk 0:01:24.8]} 40... Kg8 {[%clk
0:00:11]} 41. Qe4 {[%clk 0:01:19.1]} 41... Rc1+ {[%clk 0:00:10.9]} 42. Kh2
{[%clk 0:01:18.2]} 42... Qxf2 {[%clk 0:00:12.1]} 43. Qxg6+ {[%clk 0:01:14.1]}
1-0

[Event "*** Titled Tuesday 3|2 Blitz"]
[Site "Chess.com"]
[Date "2016.05.03"]
[Round "7"]
[White "SidArun"]
[Black "Quiet_Desperation"]
[Result "1-0"]
[WhiteElo "2003"]
[BlackElo "2263"]
[TimeControl "180+2"]
[EndTime "18:26:22 PDT"]
[Termination "SidArun won by resignation"]

1. d4 {[%clk 0:03:01.9]} 1... Nf6 {[%clk 0:03:00.6]} 2. Nf3 {[%clk 0:03:02.5]}
2... e6 {[%clk 0:03:00.8]} 3. Bf4 {[%clk 0:03:00.8]} 3... d5 {[%clk 0:02:58]} 4.
e3 {[%clk 0:03:00.8]} 4... Be7 {[%clk 0:02:59.3]} 5. Bd3 {[%clk 0:03:01]} 5...
O-O {[%clk 0:02:58.9]} 6. Nbd2 {[%clk 0:03:01.9]} 6... c5 {[%clk 0:02:59.8]} 7.
c3 {[%clk 0:03:02.9]} 7... Nc6 {[%clk 0:03:01.2]} 8. Bb1 {[%clk 0:03:03.3]} 8...
b6 {[%clk 0:03:00.5]} 9. Qc2 {[%clk 0:03:01.6]} 9... g6 {[%clk 0:02:56.2]} 10.
h3 {[%clk 0:02:39.6]} 10... Ba6 {[%clk 0:02:56.8]} 11. g4 {[%clk 0:02:35.1]}
11... Rc8 {[%clk 0:02:55]} 12. Qa4 {[%clk 0:02:27.4]} 12... Bb7 {[%clk
0:02:46.8]} 13. Kf1 {[%clk 0:02:26.5]} 13... cxd4 {[%clk 0:02:45.8]} 14. exd4
{[%clk 0:02:27.2]} 14... Na5 {[%clk 0:02:41.2]} 15. Bd3 {[%clk 0:02:24.5]} 15...
Ne4 {[%clk 0:02:40]} 16. Kg2 {[%clk 0:02:19.5]} 16... f5 {[%clk 0:02:37.2]} 17.
Bh6 {[%clk 0:02:19.4]} 17... Rf7 {[%clk 0:02:31.6]} 18. Ne5 {[%clk 0:02:20]}
18... Rf6 {[%clk 0:02:25.8]} 19. g5 {[%clk 0:02:01.4]} 19... Rf8 {[%clk
0:02:16]} 20. Bxf8 {[%clk 0:01:59.9]} 20... Nxd2 {[%clk 0:02:08.2]} 21. Bxe7
{[%clk 0:01:59.5]} 21... Qxe7 {[%clk 0:02:09.5]} 22. f4 {[%clk 0:01:54.6]} 22...
Ndc4 {[%clk 0:02:03.2]} 23. Bxc4 {[%clk 0:01:33]} 23... Nxc4 {[%clk 0:02:01.4]}
24. Rhe1 {[%clk 0:01:29.9]} 24... Nxb2 {[%clk 0:01:47.4]} 25. Qxa7 {[%clk
0:01:23.2]} 25... Rxc3 {[%clk 0:01:48.3]} 26. Rac1 {[%clk 0:01:23.9]} 26... Qc7
{[%clk 0:01:27.3]} 27. Rxc3 {[%clk 0:01:16.4]} 27... Qxc3 {[%clk 0:01:21.6]} 28.
Qxb6 {[%clk 0:00:51.1]} 28... Qd2+ {[%clk 0:00:32]} 29. Kf3 {[%clk 0:00:48.9]}
29... Qc3+ {[%clk 0:00:12.9]} 30. Re3 {[%clk 0:00:48.2]} 30... Qc8 {[%clk
0:00:10.1]} 31. Qxb2 {[%clk 0:00:49.1]} 31... Ba6 {[%clk 0:00:10.9]} 32. Rc3
{[%clk 0:00:48.1]} 32... Bc4 {[%clk 0:00:11.2]} 33. Ke3 {[%clk 0:00:35.1]} 33...
h6 {[%clk 0:00:11.2]} 34. h4 {[%clk 0:00:35.4]} 34... hxg5 {[%clk 0:00:12.4]}
35. hxg5 {[%clk 0:00:35.7]} 35... Kg7 {[%clk 0:00:14.3]} 36. Qb4 {[%clk
0:00:35.6]} 36... Qh8 {[%clk 0:00:14.6]} 37. Qe7+ {[%clk 0:00:36.2]} 1-0

[Event "*** Titled Tuesday 3|2 Blitz"]
[Site "Chess.com"]
[Date "2016.05.03"]
[Round "7"]
[White "Boryboy"]
[Black "Tonychess32"]
[Result "0-1"]
[WhiteElo "2530"]
[BlackElo "2430"]
[TimeControl "180+2"]
[EndTime "18:26:38 PDT"]
[Termination "Tonychess32 won by resignation"]

1. d4 {[%clk 0:03:01.9]} 1... Nf6 {[%clk 0:02:59.2]} 2. Nf3 {[%clk 0:03:00.2]}
2... e6 {[%clk 0:03:00.6]} 3. g3 {[%clk 0:02:53.7]} 3... d5 {[%clk 0:03:01.8]}
4. Bg2 {[%clk 0:02:53]} 4... Be7 {[%clk 0:03:03.2]} 5. O-O {[%clk 0:02:54.1]}
5... O-O {[%clk 0:03:03.8]} 6. c4 {[%clk 0:02:54.6]} 6... dxc4 {[%clk
0:03:01.9]} 7. Ne5 {[%clk 0:02:54]} 7... Nbd7 {[%clk 0:03:00.9]} 8. Nxc4 {[%clk
0:02:49.7]} 8... c5 {[%clk 0:03:00.3]} 9. dxc5 {[%clk 0:02:43.1]} 9... Nxc5
{[%clk 0:03:01.4]} 10. Nc3 {[%clk 0:02:41.4]} 10... Bd7 {[%clk 0:02:59.6]} 11.
Be3 {[%clk 0:02:15.4]} 11... Bc6 {[%clk 0:02:56.8]} 12. Qxd8 {[%clk 0:02:10.1]}
12... Rfxd8 {[%clk 0:02:56.8]} 13. Bxc6 {[%clk 0:02:10.6]} 13... bxc6 {[%clk
0:02:58]} 14. Na5 {[%clk 0:02:09.4]} 14... Rdc8 {[%clk 0:02:44.9]} 15. Rac1
{[%clk 0:02:09.5]} 15... Ncd7 {[%clk 0:02:43]} 16. Rfd1 {[%clk 0:02:00]} 16...
Nb6 {[%clk 0:02:44.2]} 17. Bd4 {[%clk 0:01:54.2]} 17... h6 {[%clk 0:02:32.3]}
18. b3 {[%clk 0:01:44.4]} 18... Ba3 {[%clk 0:02:28.7]} 19. Rc2 {[%clk
0:01:41.5]} 19... Nfd5 {[%clk 0:02:29.8]} 20. Nxd5 {[%clk 0:01:39]} 20... cxd5
{[%clk 0:02:31.1]} 21. Nc6 {[%clk 0:01:31.4]} 21... Rc7 {[%clk 0:02:31.5]} 22.
Be5 {[%clk 0:01:25.5]} 22... Rcc8 {[%clk 0:02:27.9]} 23. Rd3 {[%clk 0:01:26.5]}
23... Nd7 {[%clk 0:02:25.8]} 24. Bd4 {[%clk 0:01:27.4]} 24... Bd6 {[%clk
0:02:20.6]} 25. Rdc3 {[%clk 0:01:25.3]} 25... Kh7 {[%clk 0:02:18.6]} 26. f4
{[%clk 0:01:26.3]} 26... a6 {[%clk 0:02:16.7]} 27. Kf2 {[%clk 0:01:16.2]} 27...
f6 {[%clk 0:02:15.7]} 28. Na5 {[%clk 0:01:09.9]} 28... Rxc3 {[%clk 0:02:16.6]}
29. Rxc3 {[%clk 0:01:10.6]} 29... e5 {[%clk 0:02:16.7]} 30. Rc6 {[%clk
0:01:04.5]} 30... Ba3 {[%clk 0:02:17.6]} 31. Bc3 {[%clk 0:01:01.2]} 31... Nc5
{[%clk 0:02:18.6]} 32. Be1 {[%clk 0:00:54.7]} 32... Ne4+ {[%clk 0:02:19.2]} 33.
Kf3 {[%clk 0:00:54.9]} 33... exf4 {[%clk 0:02:17.1]} 34. gxf4 {[%clk 0:00:56.1]}
34... g5 {[%clk 0:02:17.6]} 35. f5 {[%clk 0:00:52.2]} 35... h5 {[%clk
0:02:16.5]} 36. h3 {[%clk 0:00:46.9]} 36... Bb2 {[%clk 0:02:16.8]} 37. Nb7
{[%clk 0:00:37.4]} 37... Re8 {[%clk 0:02:17.6]} 38. Rxa6 {[%clk 0:00:35.7]}
38... Re5 {[%clk 0:02:17.4]} 39. Nd6 {[%clk 0:00:31.9]} 39... Nxd6 {[%clk
0:02:18.5]} 40. Rxd6 {[%clk 0:00:33.8]} 40... Rxf5+ {[%clk 0:02:20.4]} 41. Kg2
{[%clk 0:00:34.3]} 41... Kg6 {[%clk 0:02:16]} 42. a4 {[%clk 0:00:32.2]} 42... d4
{[%clk 0:02:13.8]} 43. Bf2 {[%clk 0:00:27.9]} 43... Ba3 {[%clk 0:02:14.5]} 44.
Rc6 {[%clk 0:00:16.4]} 44... Rd5 {[%clk 0:02:13.6]} 45. Rc4 {[%clk 0:00:13.3]}
45... Bb2 {[%clk 0:02:14.9]} 46. b4 {[%clk 0:00:08.2]} 46... Bc3 {[%clk
0:02:16.1]} 47. b5 {[%clk 0:00:09.3]} 47... Rd7 {[%clk 0:02:13.4]} 48. Rc6
{[%clk 0:00:08.4]} 48... Kf5 {[%clk 0:02:11.1]} 49. Ra6 {[%clk 0:00:08.7]} 49...
Ke5 {[%clk 0:02:08.5]} 50. a5 {[%clk 0:00:09.3]} 50... Kd5 {[%clk 0:02:06.5]}
51. Rxf6 {[%clk 0:00:09.2]} 51... d3 {[%clk 0:02:04.6]} 52. Rf5+ {[%clk
0:00:06.8]} 52... Ke4 {[%clk 0:02:06.1]} 53. Rxg5 {[%clk 0:00:04.9]} 53... d2
{[%clk 0:02:05.2]} 54. a6 {[%clk 0:00:03.6]} 54... d1=Q {[%clk 0:02:05.6]} 55.
b6 {[%clk 0:00:05.2]} 55... Qxe2 {[%clk 0:02:04.6]} 56. b7 {[%clk 0:00:06.8]}
56... Qf3+ {[%clk 0:02:05.5]} 57. Kh2 {[%clk 0:00:06.2]} 57... Qxf2+ {[%clk
0:02:03.8]} 58. Rg2 {[%clk 0:00:08.1]} 58... Be5+ {[%clk 0:02:04.8]} 0-1

[Event "*** Titled Tuesday 3|2 Blitz"]
[Site "Chess.com"]
[Date "2016.05.03"]
[Round "7"]
[White "andryusha"]
[Black "Assasin14"]
[Result "0-1"]
[WhiteElo "2190"]
[BlackElo "2065"]
[TimeControl "180+2"]
[EndTime "18:26:42 PDT"]
[Termination "Assasin14 won by resignation"]

1. e4 {[%clk 0:03:01.9]} 1... c5 {[%clk 0:02:59.7]} 2. Nf3 {[%clk 0:03:02.6]}
2... d6 {[%clk 0:02:58.8]} 3. Bb5+ {[%clk 0:03:03.4]} 3... Nd7 {[%clk
0:02:58.7]} 4. d4 {[%clk 0:03:03.8]} 4... cxd4 {[%clk 0:02:57.1]} 5. Qxd4 {[%clk
0:03:04.9]} 5... a6 {[%clk 0:02:58.4]} 6. Bxd7+ {[%clk 0:03:05.3]} 6... Bxd7
{[%clk 0:03:00.3]} 7. Nc3 {[%clk 0:03:06.7]} 7... Nf6 {[%clk 0:02:59.8]} 8. e5
{[%clk 0:03:02.5]} 8... dxe5 {[%clk 0:02:56.2]} 9. Nxe5 {[%clk 0:03:03.6]} 9...
Bf5 {[%clk 0:02:43.1]} 10. Qa4+ {[%clk 0:02:48.3]} 10... b5 {[%clk 0:02:41.6]}
11. Qf4 {[%clk 0:02:48.4]} 11... e6 {[%clk 0:02:40]} 12. Be3 {[%clk 0:02:42.7]}
12... Qc7 {[%clk 0:02:30.1]} 13. O-O-O {[%clk 0:02:40.8]} 13... Bd6 {[%clk
0:02:24.6]} 14. Rxd6 {[%clk 0:02:13.9]} 14... Qxd6 {[%clk 0:02:23.3]} 15. g4
{[%clk 0:02:14.5]} 15... Nxg4 {[%clk 0:02:12.1]} 16. Qf3 {[%clk 0:01:54.9]}
16... O-O {[%clk 0:01:50.1]} 17. Nxg4 {[%clk 0:01:54.2]} 17... b4 {[%clk
0:01:51.1]} 18. Ne4 {[%clk 0:01:32.9]} 18... Qc7 {[%clk 0:01:35.1]} 19. Rg1
{[%clk 0:00:51.6]} 19... Rac8 {[%clk 0:01:27.5]} 20. c3 {[%clk 0:00:48.5]} 20...
bxc3 {[%clk 0:01:20.5]} 21. Nxc3 {[%clk 0:00:41.1]} 21... Kh8 {[%clk 0:01:11.3]}
22. Bd4 {[%clk 0:00:40.9]} 22... Bg6 {[%clk 0:01:11]} 23. Ne5 {[%clk 0:00:40.2]}
23... Rcd8 {[%clk 0:00:59.5]} 24. Qf4 {[%clk 0:00:34.8]} 24... Qd6 {[%clk
0:00:56.4]} 25. Rd1 {[%clk 0:00:23.9]} 25... Qe7 {[%clk 0:00:50.9]} 26. Nc6
{[%clk 0:00:21.7]} 26... Qd6 {[%clk 0:00:48.2]} 27. Qxd6 {[%clk 0:00:21.4]}
27... Rxd6 {[%clk 0:00:48.9]} 28. Bc5 {[%clk 0:00:17.8]} 28... Rxd1+ {[%clk
0:00:48.4]} 29. Kxd1 {[%clk 0:00:19.2]} 29... Rc8 {[%clk 0:00:50]} 30. Nb4
{[%clk 0:00:17.4]} 30... Rxc5 {[%clk 0:00:49.2]} 31. Nxa6 {[%clk 0:00:18.7]}
31... Ra5 {[%clk 0:00:49]} 32. Nb4 {[%clk 0:00:18.9]} 32... Bh5+ {[%clk
0:00:50.9]} 33. Kd2 {[%clk 0:00:19.6]} 33... Rf5 {[%clk 0:00:50.6]} 34. Ke3
{[%clk 0:00:20.3]} 34... Rf3+ {[%clk 0:00:51.1]} 35. Kd4 {[%clk 0:00:18.2]}
35... Rxf2 {[%clk 0:00:48.3]} 36. Nd3 {[%clk 0:00:18.9]} 36... Rxh2 {[%clk
0:00:48.8]} 37. a4 {[%clk 0:00:19.3]} 37... Rh4+ {[%clk 0:00:47.2]} 38. Kc5
{[%clk 0:00:19.1]} 38... g5 {[%clk 0:00:46.9]} 39. Ne5 {[%clk 0:00:19.9]} 39...
g4 {[%clk 0:00:45.1]} 40. Ne4 {[%clk 0:00:19.6]} 40... Bg6 {[%clk 0:00:43.8]}
41. Ng5 {[%clk 0:00:16.7]} 41... Rh5 {[%clk 0:00:41.5]} 0-1